Workbook

Sheet Tabeller
C1: Tabeller
B4: Statistikk Fjelloverganger i Nord-Norge
B5: Antall ganger midlertidig stengt og kolonnekjøringer i vintersesongen (1. oktober - 15. mai) | AA5: Oppdatert 01.04.2020 av Roar F Hanssen, VTS | AC5: Ant.Vintre | AI5: Midlertidig stengt
B6: Statistikken er tatt ut ved hjelp av Vegloggens statistikkmodul. Vegloggen er det loggføringsverktøyet som brukes på Vegtrafikksentralene. | AA6: Oppdatert til og med 31. mars 2020 | AC6: 11
AI7: 2 | AK7: 3 | AL7: 5 | AM7: 7 | AN7: 9 | AO7: 11 | AP7: 13 | AQ7: 15 | AR7: 17 | AS7: 19 | AT7: 21 | AU7: 23
D8: 2009 / 2010 | F8: 2010 / 2011 | H8: 2011 / 2012 | J8: 2012 / 2013 | L8: 2013 / 2014 | N8: 2014 / 2015 | P8: 2015 / 2016 | R8: 2016 / 2017 | T8: 2017 / 2018 | V8: 2018/2019 | X8: 2019/2020 | Z8: SUM | AB8: SNITT | AK8: 2009 / 2010 | AL8: 2010 / 2011 | AM8: 2011 / 2012 | AN8: 2012 / 2013 | AO8: 2013 / 2014 | AP8: 2014 / 2015 | AQ8: 2015 / 2016 | AR8: 2016 / 2017 | AS8: 2017 / 2018 | AT8: 2018 / 2019 | AU8: 2019/2020
B9: Nr | C9: Fjellovergang/strekning | D9: MS | E9: KK | F9: MS | G9: KK | H9: MS | I9: KK | J9: MS | K9: KK | L9: MS | M9: KK | N9: MS | O9: KK | P9: MS | Q9: KK | R9: MS | S9: KK | T9: MS | U9: KK | V9: MS | W9: KK | X9: MS | Y9: KK | Z9: MS | AA9: KK | AB9: MS | AC9: KK | AK9: MS | AL9: MS | AM9: MS | AN9: MS | AO9: MS | AP9: MS | AQ9: MS | AR9: MS | AS9: MS | AT9: MS | AU9: MS
B10: 1 | C10: E6 Burfjord - Alta | D10: 9 | E10: 0 | F10: 11 | G10: 0 | H10: 21 | I10: 0 | J10: 22 | K10: 0 | L10: 23 | M10: 0 | N10: 53 | O10: 0 | P10: 33 | Q10: 0 | R10: 7 | S10: 0 | T10: 13 | U10: 0 | V10: 9 | W10: 0 | X10: 19 | Y10: 0 | Z10: =SUM(T10,R10,P10,N10,L10,J10,H10,F10,D10,V10,X10) -> 220 | AA10: =SUM(U10,S10,Q10,O10,M10,K10,I10,G10,E10,W10,Y10) -> 0 | AB10: =Z10/AD10 -> 20 | AC10: =AA10/AD10 -> 0 | AD10: =COUNT(D10:Y10)/2 -> 11 | AI10: =B10 -> 1 | AJ10: =VLOOKUP($AI10,Hovedtabell,AI$7,FALSE) -> E6 Burfjord - Alta | AK10: =VLOOKUP($AI10,Hovedtabell,AK$7,FALSE) -> 9 | AL10: 11 | AM10: 21 | AN10: 22 | AO10: 23 | AP10: 53 | AQ10: 33 | AR10: 7 | AS10: 13 | AT10: 9 | AU10: 19
B11: 2 | C11: E6 Hatter | D11: 3 | E11: 2 | F11: 12 | G11: 10 | H11: 3 | I11: 2 | J11: 9 | K11: 10 | L11: 13 | M11: 10 | N11: 17 | O11: 10 | P11: 8 | Q11: 6 | R11: 19 | S11: 19 | T11: 5 | U11: 4 | V11: 13 | W11: 9 | X11: 28 | Y11: 21 | Z11: =SUM(T11,R11,P11,N11,L11,J11,H11,F11,D11,V11,X11) -> 130 | AA11: =SUM(U11,S11,Q11,O11,M11,K11,I11,G11,E11,W11,Y11) -> 103 | AB11: =Z11/AD11 -> 11.81818182 | AC11: =AA11/AD11 -> 9.363636364 | AD11: =COUNT(D11:Y11)/2 -> 11 | AI11: =B11 -> 2 | AJ11: E6 Hatter | AK11: 3 | AL11: 12 | AM11: 3 | AN11: 9 | AO11: 13 | AP11: 17 | AQ11: 8 | AR11: 19 | AS11: 5 | AT11: 13 | AU11: 28
B12: 3 | C12: E6 Kråkmofjellet | D12: 5 | E12: 0 | F12: 10 | G12: 0 | H12: 3 | I12: 0 | J12: 8 | K12: 0 | L12: 11 | M12: 1 | N12: 32 | O12: 0 | P12: 3 | Q12: 0 | R12: 11 | S12: 0 | T12: 6 | U12: 0 | V12: 5 | W12: 0 | X12: 9 | Y12: 2 | Z12: 103 | AA12: 3 | AB12: 9.363636364 | AC12: 0.2727272727 | AD12: 11 | AI12: 3 | AJ12: E6 Kråkmofjellet | AK12: 5 | AL12: 10 | AM12: 3 | AN12: 8 | AO12: 11 | AP12: 32 | AQ12: 3 | AR12: 11 | AS12: 6 | AT12: 5 | AU12: 9
B13: 4 | C13: E6 Kvænangsfjellet | D13: 16 | E13: 4 | F13: 30 | G13: 8 | H13: 8 | I13: 1 | J13: 35 | K13: 18 | L13: 44 | M13: 16 | N13: 21 | O13: 11 | P13: 23 | Q13: 10 | R13: 30 | S13: 19 | T13: 33 | U13: 24 | V13: 36 | W13: 19 | X13: 77 | Y13: 44 | Z13: 353 | AA13: 174 | AB13: 32.09090909 | AC13: 15.81818182 | AD13: 11 | AI13: 4 | AJ13: E6 Kvænangsfjellet | AK13: 16 | AL13: 30 | AM13: 8 | AN13: 35 | AO13: 44 | AP13: 21 | AQ13: 23 | AR13: 30 | AS13: 33 | AT13: 36 | AU13: 77
B14: 5 | C14: E6 Saltfjellet | D14: 9 | E14: 6 | F14: 31 | G14: 28 | H14: 29 | I14: 30 | J14: 10 | K14: 7 | L14: 46 | M14: 38 | N14: 31 | O14: 31 | P14: 19 | Q14: 17 | R14: 49 | S14: 44 | T14: 12 | U14: 11 | V14: 39 | W14: 17 | X14: 76 | Y14: 65 | Z14: 351 | AA14: 294 | AB14: 31.90909091 | AC14: 26.72727273 | AD14: 11 | AI14: 5 | AJ14: E6 Saltfjellet | AK14: 9 | AL14: 31 | AM14: 29 | AN14: 10 | AO14: 46 | AP14: 31 | AQ14: 19 | AR14: 49 | AS14: 12 | AT14: 39 | AU14: 76
B15: 6 | C15: E6 Sennalandet | D15: 11 | E15: 4 | F15: 41 | G15: 34 | H15: 15 | I15: 19 | J15: 38 | K15: 31 | L15: 39 | M15: 37 | N15: 33 | O15: 20 | P15: 17 | Q15: 13 | R15: 55 | S15: 57 | T15: 28 | U15: 26 | V15: 21 | W15: 8 | X15: 48 | Y15: 86 | Z15: 346 | AA15: 335 | AB15: =Z15/AD15 -> 31.45454545 | AC15: 30.45454545 | AD15: 11 | AI15: 6 | AJ15: E6 Sennalandet | AK15: 11 | AL15: 41 | AM15: 15 | AN15: 38 | AO15: 39 | AP15: 33 | AQ15: 17 | AR15: 55 | AS15: 28 | AT15: 21 | AU15: 48
B16: 7 | C16: E6 Ulvsvågskaret | D16: 6 | E16: 0 | F16: 28 | G16: 4 | H16: 17 | I16: 0 | J16: 27 | K16: 0 | L16: 15 | M16: 0 | N16: 20 | O16: 0 | P16: 13 | Q16: 0 | R16: 7 | S16: 0 | T16: 6 | U16: 0 | V16: 13 | W16: 0 | X16: 6 | Y16: 0 | Z16: 158 | AA16: 4 | AB16: 14.36363636 | AC16: 0.3636363636 | AD16: 11 | AI16: 7 | AJ16: E6 Ulvsvågskaret | AK16: 6 | AL16: 28 | AM16: 17 | AN16: 27 | AO16: 15 | AP16: 20 | AQ16: 13 | AR16: 7 | AS16: 6 | AT16: 13 | AU16: 6
B17: 8 | C17: E10 Bjørnfjell | D17: 8 | E17: 11 | F17: 35 | G17: 30 | H17: 13 | I17: 8 | J17: 38 | K17: 21 | L17: 55 | M17: 43 | N17: 40 | O17: 18 | P17: 28 | Q17: 18 | R17: 59 | S17: 28 | T17: 22 | U17: 8 | V17: 47 | W17: 41 | X17: 59 | Y17: 53 | Z17: 404 | AA17: 279 | AB17: 36.72727273 | AC17: 25.36363636 | AD17: 11 | AI17: 8 | AJ17: E10 Bjørnfjell | AK17: 8 | AL17: 35 | AM17: 13 | AN17: 38 | AO17: 55 | AP17: 40 | AQ17: 28 | AR17: 59 | AS17: 22 | AT17: 47 | AU17: 59
B18: 9 | C18: E12 Umbukta | D18: 3 | E18: 1 | F18: 11 | G18: 2 | H18: 13 | I18: 16 | J18: 22 | K18: 3 | L18: 41 | M18: 19 | N18: 14 | O18: 8 | P18: 8 | Q18: 2 | R18: 10 | S18: 4 | T18: 6 | U18: 3 | V18: 5 | W18: 4 | X18: 22 | Y18: 15 | Z18: 155 | AA18: 77 | AB18: 14.09090909 | AC18: 7 | AD18: 11 | AI18: 9 | AJ18: E12 Umbukta | AK18: 3 | AL18: 11 | AM18: 13 | AN18: 22 | AO18: 41 | AP18: 14 | AQ18: 8 | AR18: 10 | AS18: 6 | AT18: 5 | AU18: 22
B19: 10 | C19: E69 Hønsa - Repvåg | D19: 21 | E19: 12 | F19: 33 | G19: 16 | H19: 11 | I19: 5 | J19: 41 | K19: 3 | L19: 29 | M19: 3 | N19: 28 | O19: 12 | P19: 33 | Q19: 10 | R19: 49 | S19: 20 | T19: 50 | U19: 3 | V19: 42 | W19: 15 | X19: 64 | Y19: 54 | Z19: 401 | AA19: 153 | AB19: 36.45454545 | AC19: 13.90909091 | AD19: 11 | AI19: 10 | AJ19: E69 Hønsa - Repvåg | AK19: 21 | AL19: 33 | AM19: 11 | AN19: 41 | AO19: 29 | AP19: 28 | AQ19: 33 | AR19: 49 | AS19: 50 | AT19: 42 | AU19: 64
B20: 11 | C20: E69 Nordkapptunnelen - Honningsvåg | D20: 7 | E20: 0 | F20: 15 | G20: 1 | H20: 7 | I20: 1 | J20: 29 | K20: 1 | L20: 19 | M20: 0 | N20: 23 | O20: 3 | P20: 19 | Q20: 1 | R20: 12 | S20: 0 | T20: 31 | U20: 3 | V20: 17 | W20: 1 | X20: 27 | Y20: 6 | Z20: 206 | AA20: 17 | AB20: =Z20/AD20 -> 18.72727273 | AC20: =AA20/AD20 -> 1.545454545 | AD20: 11 | AI20: 11 | AJ20: E69 Nordkapptunnelen - Honningsvåg | AK20: 7 | AL20: 15 | AM20: 7 | AN20: 29 | AO20: 19 | AP20: 23 | AQ20: 19 | AR20: 12 | AS20: 31 | AT20: 17 | AU20: 27
B21: 12 | C21: E69 Olderfjord - Honningsvåg | D21: 44 | E21: 22 | F21: 73 | G21: 33 | H21: 22 | I21: 10 | J21: 91 | K21: 7 | L21: 63 | M21: 7 | N21: 62 | O21: 24 | P21: 81 | Q21: 24 | R21: 72 | S21: 30 | T21: 107 | U21: 15 | V21: 62 | W21: 17 | X21: 95 | Y21: 67 | Z21: 772 | AA21: 256 | AB21: 70.18181818 | AC21: 23.27272727 | AD21: 11 | AI21: 12 | AJ21: E69 Olderfjord - Honningsvåg | AK21: 44 | AL21: 73 | AM21: 22 | AN21: 91 | AO21: 63 | AP21: 62 | AQ21: 81 | AR21: 72 | AS21: 107 | AT21: 62 | AU21: 95
B22: 13 | C22: E69 Olderfjord - Hønsa | D22: 0 | E22: 0 | F22: 3 | G22: 0 | H22: 1 | I22: 0 | J22: 2 | K22: 0 | L22: 3 | M22: 0 | N22: 1 | O22: 0 | P22: 1 | Q22: 0 | R22: 4 | S22: 0 | T22: 5 | U22: 0 | V22: 1 | W22: 0 | X22: 6 | Y22: 0 | Z22: 27 | AA22: 0 | AB22: =Z22/AD22 -> 2.454545455 | AC22: =AA22/AD22 -> 0 | AD22: 11 | AI22: 13 | AJ22: E69 Olderfjord - Hønsa | AK22: 0 | AL22: 3 | AM22: 1 | AN22: 2 | AO22: 3 | AP22: 1 | AQ22: 1 | AR22: 4 | AS22: 5 | AT22: 1 | AU22: 6
B23: 14 | C23: E69 Repvåg - Nordkapptunnelen | D23: 18 | E23: 10 | F23: 32 | G23: 16 | H23: 13 | I23: 6 | J23: 35 | K23: 5 | L23: 27 | M23: 5 | N23: 26 | O23: 14 | P23: 36 | Q23: 13 | R23: 48 | S23: 26 | T23: 51 | U23: 15 | V23: 35 | W23: 17 | X23: 56 | Y23: 65 | Z23: 377 | AA23: 192 | AB23: 34.27272727 | AC23: 17.45454545 | AD23: 11 | AI23: 14 | AJ23: E69 Repvåg - Nordkapptunnelen | AK23: 18 | AL23: 32 | AM23: 13 | AN23: 35 | AO23: 27 | AP23: 26 | AQ23: 36 | AR23: 48 | AS23: 51 | AT23: 35 | AU23: 56
B24: 15 | C24: E69 Skarsvåg - Nordkapp | D24: 9 | E24: 5 | F24: 18 | G24: 7 | H24: 23 | I24: 19 | J24: 21 | K24: 22 | L24: 13 | M24: 24 | N24: 16 | O24: 20 | P24: 8 | Q24: 11 | R24: 39 | S24: 36 | T24: 26 | U24: 40 | V24: 25 | W24: 31 | X24: 48 | Y24: 38 | Z24: 246 | AA24: 253 | AB24: 22.36363636 | AC24: 23 | AD24: 11 | AI24: 15 | AJ24: E69 Skarsvåg - Nordkapp | AK24: =VLOOKUP($AI24,Hovedtabell,AK$7,FALSE) -> 9 | AL24: 18 | AM24: 23 | AN24: 21 | AO24: 13 | AP24: 16 | AQ24: 8 | AR24: 39 | AS24: 26 | AT24: 25 | AU24: 48
B25: 16 | C25: E69 Skipsfjordhøgda - Skarsvåg | D25: 6 | E25: 19 | F25: 22 | G25: 52 | H25: 7 | I25: 12 | J25: 27 | K25: 31 | L25: 32 | M25: 23 | N25: 22 | O25: 27 | P25: 16 | Q25: 7 | R25: 30 | S25: 12 | T25: 34 | U25: 10 | V25: 25 | W25: 20 | X25: 52 | Y25: 48 | Z25: 273 | AA25: 261 | AB25: 24.81818182 | AC25: 23.72727273 | AD25: 11 | AI25: 16 | AJ25: E69 Skipsfjordhøgda - Skarsvåg | AK25: 6 | AL25: 22 | AM25: 7 | AN25: 27 | AO25: 32 | AP25: 22 | AQ25: 16 | AR25: 30 | AS25: 34 | AT25: 25 | AU25: 52
B26: 17 | C26: Rv 73 Krutfjellet | D26: 1 | E26: 0 | F26: 4 | G26: 0 | H26: 4 | I26: 2 | J26: 1 | K26: 0 | L26: 4 | M26: 0 | N26: 4 | O26: 1 | P26: 5 | Q26: 0 | R26: 2 | S26: 4 | T26: 4 | U26: 1 | V26: 3 | W26: 2 | X26: 7 | Y26: 1 | Z26: 39 | AA26: 11 | AB26: 3.545454545 | AC26: 1 | AD26: 11 | AI26: 17 | AJ26: Rv 73 Krutfjellet | AK26: 1 | AL26: 4 | AM26: 4 | AN26: 1 | AO26: 4 | AP26: 4 | AQ26: 5 | AR26: 2 | AS26: 4 | AT26: 3 | AU26: 7
B27: 18 | C27: Rv 77 Graddis | D27: 6 | E27: 0 | F27: 6 | G27: 0 | H27: 6 | I27: 0 | J27: 8 | K27: 0 | L27: 8 | M27: 0 | N27: 2 | O27: 1 | P27: 10 | Q27: 0 | R27: 15 | S27: 0 | T27: 8 | U27: 0 | V27: 5 | W27: 0 | X27: 7 | Y27: 1 | Z27: 81 | AA27: 2 | AB27: 7.363636364 | AC27: 0.1818181818 | AD27: 11 | AI27: 18 | AJ27: Rv 77 Graddis | AK27: 6 | AL27: 6 | AM27: 6 | AN27: 8 | AO27: 8 | AP27: 2 | AQ27: 10 | AR27: 15 | AS27: 8 | AT27: 5 | AU27: 7
B28: 19 | C28: Rv 92 Kautokeino - Karasjok | D28: 0 | E28: 0 | F28: 0 | G28: 0 | H28: 2 | I28: 0 | J28: 5 | K28: 0 | L28: 6 | M28: 0 | N28: 2 | O28: 0 | P28: 4 | Q28: 1 | R28: 8 | S28: 0 | T28: 1 | U28: 0 | V28: 10 | W28: 0 | X28: 3 | Y28: 0 | Z28: 41 | AA28: 1 | AB28: 3.727272727 | AC28: 0.09090909091 | AD28: 11 | AI28: 19 | AJ28: Rv 92 Kautokeino - Karasjok | AK28: 0 | AL28: 0 | AM28: 2 | AN28: 5 | AO28: 6 | AP28: 2 | AQ28: 4 | AR28: 8 | AS28: 1 | AT28: 10 | AU28: 3
B29: 20 | C29: E45 Kautokeino - Alta | D29: 4 | E29: 0 | F29: 17 | G29: 0 | H29: 2 | I29: 0 | J29: 7 | K29: 0 | L29: 13 | M29: 0 | N29: 4 | O29: 0 | P29: 7 | Q29: 1 | R29: 16 | S29: 2 | T29: 3 | U29: 0 | V29: 16 | W29: 0 | X29: 12 | Y29: 0 | Z29: 101 | AA29: 3 | AB29: 9.181818182 | AC29: 0.2727272727 | AD29: 11 | AI29: 20 | AJ29: E45 Kautokeino - Alta | AK29: 4 | AL29: 17 | AM29: 2 | AN29: 7 | AO29: 13 | AP29: 4 | AQ29: 7 | AR29: 16 | AS29: 3 | AT29: 16 | AU29: 12
B30: 21 | C30: Rv 94 Kvalsund - Hammerfest | D30: 8 | E30: 3 | F30: 25 | G30: 13 | H30: 7 | I30: 4 | J30: 18 | K30: 6 | L30: 14 | M30: 6 | N30: 23 | O30: 3 | P30: 29 | Q30: 6 | R30: 23 | S30: 4 | T30: 10 | U30: 1 | V30: 24 | W30: 3 | X30: 30 | Y30: 16 | Z30: 211 | AA30: 65 | AB30: 19.18181818 | AC30: 5.909090909 | AD30: 11 | AI30: 21 | AJ30: Rv 94 Kvalsund - Hammerfest | AK30: 8 | AL30: 25 | AM30: 7 | AN30: 18 | AO30: 14 | AP30: 23 | AQ30: 29 | AR30: 23 | AS30: 10 | AT30: 24 | AU30: 30
B31: 22 | C31: Fv 8038 Gjesværkrysset - Gjesvær | D31: 9 | E31: 16 | F31: 20 | G31: 52 | H31: 8 | I31: 11 | J31: 26 | K31: 31 | L31: 30 | M31: 22 | N31: 18 | O31: 29 | P31: 16 | Q31: 7 | R31: 32 | S31: 14 | T31: 28 | U31: 10 | V31: 18 | W31: 18 | X31: 53 | Y31: 42 | Z31: 258 | AA31: 252 | AB31: 23.45454545 | AC31: 22.90909091 | AD31: 11 | AI31: 22 | AJ31: Fv 8038 Gjesværkrysset - Gjesvær | AK31: 9 | AL31: 20 | AM31: 8 | AN31: 26 | AO31: 30 | AP31: 18 | AQ31: 16 | AR31: 32 | AS31: 28 | AT31: 18 | AU31: 53
B32: 23 | C32: Fv 889 Smørfjord - Havøysund | D32: - | E32: - | F32: 34 | G32: 54 | H32: 12 | I32: 6 | J32: 37 | K32: 38 | L32: 31 | M32: 39 | N32: 34 | O32: 26 | P32: 36 | Q32: 44 | R32: 53 | S32: 40 | T32: 37 | U32: 33 | V32: 41 | W32: 41 | X32: 68 | Y32: 58 | Z32: 383 | AA32: 379 | AB32: 38.3 | AC32: 37.9 | AD32: 10 | AI32: 23 | AJ32: Fv 889 Smørfjord - Havøysund | AK32: - | AL32: 34 | AM32: 12 | AN32: 37 | AO32: 31 | AP32: 34 | AQ32: 36 | AR32: 53 | AS32: 37 | AT32: 41 | AU32: 68
B33: 24 | C33: Fv 891 Båtsfjordfjellet | D33: - | E33: - | F33: 27 | G33: 75 | H33: 6 | I33: 44 | J33: 17 | K33: 75 | L33: 38 | M33: 61 | N33: 41 | O33: 69 | P33: 33 | Q33: 30 | R33: 65 | S33: 50 | T33: 34 | U33: 41 | V33: 19 | W33: 31 | X33: 35 | Y33: 63 | Z33: 315 | AA33: 539 | AB33: =Z33/AD33 -> 31.5 | AC33: =AA33/AD33 -> 53.9 | AD33: 10 | AI33: =B33 -> 24 | AJ33: =VLOOKUP($AI33,Hovedtabell,AI$7,FALSE) -> Fv 891 Båtsfjordfjellet | AK33: - | AL33: 27 | AM33: 6 | AN33: 17 | AO33: 38 | AP33: 41 | AQ33: 33 | AR33: 65 | AS33: 34 | AT33: 19 | AU33: 35
B34: 25 | C34: E75 Domen (Kiberg-Vardø) | D34: 8 | E34: 1 | F34: 12 | G34: 13 | H34: 0 | I34: 0 | J34: 8 | K34: 6 | L34: 7 | M34: 6 | N34: 7 | O34: 0 | P34: 2 | Q34: 0 | R34: 11 | S34: 4 | T34: 14 | U34: 8 | V34: 8 | W34: 2 | X34: 30 | Y34: 29 | Z34: 107 | AA34: 69 | AB34: 9.727272727 | AC34: 6.272727273 | AD34: 11 | AI34: 25 | AJ34: E75 Domen (Kiberg-Vardø) | AK34: 8 | AL34: 12 | AM34: 0 | AN34: 8 | AO34: 7 | AP34: 7 | AQ34: 2 | AR34: 11 | AS34: 14 | AT34: 8 | AU34: 30
B35: 26 | C35: Fv 888 Nordkynvegen (Ifjord - Mehamn) | D35: - | E35: - | F35: 66 | G35: 137 | H35: 35 | I35: 48 | J35: 44 | K35: 65 | L35: 47 | M35: 62 | N35: 31 | O35: 43 | P35: 69 | Q35: 66 | R35: 89 | S35: 117 | T35: 54 | U35: 71 | V35: 64 | W35: 74 | X35: 103 | Y35: 137 | Z35: 602 | AA35: 820 | AB35: 60.2 | AC35: 82 | AD35: 10 | AI35: 26 | AJ35: Fv 888 Nordkynvegen (Ifjord - Mehamn) | AK35: - | AL35: 66 | AM35: 35 | AN35: 44 | AO35: 47 | AP35: 31 | AQ35: 69 | AR35: 89 | AS35: 54 | AT35: 64 | AU35: 103
B36: 27 | C36: Fv 98 Ifjordfjellet | D36: - | E36: - | F36: 44 | G36: 110 | H36: 29 | I36: 54 | J36: 19 | K36: 57 | L36: 21 | M36: 49 | N36: 12 | O36: 25 | P36: 21 | Q36: 37 | R36: 23 | S36: 56 | T36: 25 | U36: 39 | V36: 17 | W36: 39 | X36: 28 | Y36: 70 | Z36: 239 | AA36: 536 | AB36: =Z36/AD36 -> 23.9 | AC36: =AA36/AD36 -> 53.6 | AD36: 10 | AI36: 27 | AJ36: Fv 98 Ifjordfjellet | AK36: - | AL36: 44 | AM36: 29 | AN36: 19 | AO36: 21 | AP36: 12 | AQ36: 21 | AR36: 23 | AS36: 25 | AT36: 17 | AU36: 28
B37: 28 | C37: Fv 890 Kongsfjordfjellet | D37: - | E37: - | F37: 25 | G37: 75 | H37: 6 | I37: 44 | J37: 18 | K37: 73 | L37: 40 | M37: 57 | N37: 37 | O37: 53 | P37: 25 | Q37: 18 | R37: 56 | S37: 29 | T37: 27 | U37: 27 | V37: 17 | W37: 23 | X37: 37 | Y37: 61 | Z37: 288 | AA37: 460 | AB37: 28.8 | AC37: 46 | AD37: 10 | AI37: =B37 -> 28 | AJ37: =VLOOKUP($AI37,Hovedtabell,AI$7,FALSE) -> Fv 890 Kongsfjordfjellet | AK37: - | AL37: 25 | AM37: 6 | AN37: 18 | AO37: 40 | AP37: 37 | AQ37: 25 | AR37: 56 | AS37: 27 | AT37: 17 | AU37: 37
B38: 29 | C38: Fv 98 Børselvfjellet (Børselv - Kunes) | D38: - | E38: - | F38: 4 | G38: 1 | H38: 1 | I38: 0 | J38: 5 | K38: 3 | L38: 5 | M38: 0 | N38: 4 | O38: 1 | P38: 7 | Q38: 0 | R38: 15 | S38: 11 | T38: 9 | U38: 0 | V38: 8 | W38: 0 | X38: 27 | Y38: 12 | Z38: 85 | AA38: 28 | AB38: =Z38/AD38 -> 8.5 | AC38: =AA38/AD38 -> 2.8 | AD38: 10 | AI38: 29 | AJ38: Fv 98 Børselvfjellet (Børselv - Kunes) | AK38: - | AL38: 4 | AM38: 1 | AN38: 5 | AO38: 5 | AP38: 4 | AQ38: 7 | AR38: 15 | AS38: 9 | AT38: 8 | AU38: 27
B39: 30 | C39: Fv 813 Beiarfjellet (Misvær - Storjord) | D39: - | E39: - | F39: 9 | G39: 17 | H39: 5 | I39: 8 | J39: 6 | K39: 2 | L39: 9 | M39: 13 | N39: 8 | O39: 16 | P39: 2 | Q39: 6 | R39: 12 | S39: 19 | T39: 7 | U39: 6 | V39: 5 | W39: 10 | X39: 20 | Y39: 35 | Z39: =SUM(T39,R39,P39,N39,L39,J39,H39,F39,D39,V39,X39) -> 83 | AA39: =SUM(U39,S39,Q39,O39,M39,K39,I39,G39,E39,W39,Y39) -> 132 | AB39: =Z39/AD39 -> 8.3 | AC39: =AA39/AD39 -> 13.2 | AD39: 10 | AI39: =B39 -> 30 | AJ39: =VLOOKUP($AI39,Hovedtabell,AI$7,FALSE) -> Fv 813 Beiarfjellet (Misvær - Storjord) | AK39: - | AL39: 9 | AM39: 5 | AN39: 6 | AO39: 9 | AP39: 8 | AQ39: 2 | AR39: 12 | AS39: 7 | AT39: 5 | AU39: 20
AI43: Kolonnekjøring
AJ45: 2 | AK45: 4 | AL45: 6 | AM45: 8 | AN45: 10 | AO45: 12 | AP45: 14 | AQ45: 16 | AR45: 18 | AS45: 20 | AT45: 22 | AU45: 24
AK46: 2009 / 2010 | AL46: 2010 / 2011 | AM46: 2011 / 2012 | AN46: 2012 / 2013 | AO46: 2013 / 2014 | AP46: 2014 / 2015 | AQ46: 2015 / 2016 | AR46: 2016 / 2017 | AS46: 2017 / 2018 | AT46: 2018 / 2019 | AU46: 2019/2020
AK47: KK | AL47: KK | AM47: KK | AN47: KK | AO47: KK | AP47: KK | AQ47: KK | AR47: KK | AS47: KK | AT47: KK | AU47: KK
AI48: 1 | AJ48: =VLOOKUP($AI48,Hovedtabell,AJ$45,FALSE) -> E6 Burfjord - Alta | AK48: 0 | AL48: 0 | AM48: 0 | AN48: 0 | AO48: 0 | AP48: 0 | AQ48: 0 | AR48: 0 | AS48: 0 | AT48: 0 | AU48: 0
AI49: 2 | AJ49: E6 Hatter | AK49: 2 | AL49: 10 | AM49: 2 | AN49: 10 | AO49: 10 | AP49: 10 | AQ49: 6 | AR49: 19 | AS49: 4 | AT49: 9 | AU49: 21
AI50: 3 | AJ50: E6 Kråkmofjellet | AK50: 0 | AL50: 0 | AM50: 0 | AN50: 0 | AO50: 1 | AP50: 0 | AQ50: 0 | AR50: 0 | AS50: 0 | AT50: 0 | AU50: 2
AI51: 4 | AJ51: E6 Kvænangsfjellet | AK51: 4 | AL51: 8 | AM51: 1 | AN51: 18 | AO51: 16 | AP51: 11 | AQ51: 10 | AR51: 19 | AS51: 24 | AT51: 19 | AU51: 44
AI52: 5 | AJ52: E6 Saltfjellet | AK52: 6 | AL52: 28 | AM52: 30 | AN52: 7 | AO52: 38 | AP52: 31 | AQ52: 17 | AR52: 44 | AS52: 11 | AT52: 17 | AU52: 65
AI53: 6 | AJ53: E6 Sennalandet | AK53: 4 | AL53: 34 | AM53: 19 | AN53: 31 | AO53: 37 | AP53: 20 | AQ53: 13 | AR53: 57 | AS53: 26 | AT53: 8 | AU53: 86
AI54: 7 | AJ54: E6 Ulvsvågskaret | AK54: 0 | AL54: 4 | AM54: 0 | AN54: 0 | AO54: 0 | AP54: 0 | AQ54: 0 | AR54: 0 | AS54: 0 | AT54: 0 | AU54: 0
AI55: 8 | AJ55: E10 Bjørnfjell | AK55: 11 | AL55: 30 | AM55: 8 | AN55: 21 | AO55: 43 | AP55: 18 | AQ55: 18 | AR55: 28 | AS55: 8 | AT55: 41 | AU55: 53
AI56: 9 | AJ56: E12 Umbukta | AK56: 1 | AL56: 2 | AM56: 16 | AN56: 3 | AO56: 19 | AP56: 8 | AQ56: 2 | AR56: 4 | AS56: 3 | AT56: 4 | AU56: 15
AI57: 10 | AJ57: E69 Hønsa - Repvåg | AK57: 12 | AL57: 16 | AM57: 5 | AN57: 3 | AO57: 3 | AP57: 12 | AQ57: 10 | AR57: 20 | AS57: 3 | AT57: 15 | AU57: 54
AI58: 11 | AJ58: =VLOOKUP($AI58,Hovedtabell,AJ$45,FALSE) -> E69 Nordkapptunnelen - Honningsvåg | AK58: 0 | AL58: 1 | AM58: 1 | AN58: 1 | AO58: 0 | AP58: 3 | AQ58: 1 | AR58: 0 | AS58: 3 | AT58: 1 | AU58: 6
AI59: 12 | AJ59: E69 Olderfjord - Honningsvåg | AK59: 22 | AL59: 33 | AM59: 10 | AN59: 7 | AO59: 7 | AP59: 24 | AQ59: 24 | AR59: 30 | AS59: 15 | AT59: 17 | AU59: 67
AI60: 13 | AJ60: E69 Olderfjord - Hønsa | AK60: 0 | AL60: 0 | AM60: 0 | AN60: 0 | AO60: 0 | AP60: 0 | AQ60: 0 | AR60: 0 | AS60: 0 | AT60: 0 | AU60: 0
AI61: 14 | AJ61: E69 Repvåg - Nordkapptunnelen | AK61: 10 | AL61: 16 | AM61: 6 | AN61: 5 | AO61: 5 | AP61: 14 | AQ61: 13 | AR61: 26 | AS61: 15 | AT61: 17 | AU61: 65
AI62: 15 | AJ62: E69 Skarsvåg - Nordkapp | AK62: 5 | AL62: 7 | AM62: 19 | AN62: 22 | AO62: 24 | AP62: 20 | AQ62: 11 | AR62: 36 | AS62: 40 | AT62: 31 | AU62: 38
AI63: 16 | AJ63: E69 Skipsfjordhøgda - Skarsvåg | AK63: 19 | AL63: 52 | AM63: 12 | AN63: 31 | AO63: 23 | AP63: 27 | AQ63: 7 | AR63: 12 | AS63: 10 | AT63: 20 | AU63: 48
AI64: 17 | AJ64: Rv 73 Krutfjellet | AK64: 0 | AL64: 0 | AM64: 2 | AN64: 0 | AO64: 0 | AP64: 1 | AQ64: 0 | AR64: 4 | AS64: 1 | AT64: 2 | AU64: 1
AI65: 18 | AJ65: Rv 77 Graddis | AK65: 0 | AL65: 0 | AM65: 0 | AN65: 0 | AO65: 0 | AP65: 1 | AQ65: 0 | AR65: 0 | AS65: 0 | AT65: 0 | AU65: 1
AI66: 19 | AJ66: Rv 92 Kautokeino - Karasjok | AK66: 0 | AL66: 0 | AM66: 0 | AN66: 0 | AO66: 0 | AP66: 0 | AQ66: 1 | AR66: 0 | AS66: 0 | AT66: 0 | AU66: 0
AI67: 20 | AJ67: E45 Kautokeino - Alta | AK67: 0 | AL67: 0 | AM67: 0 | AN67: 0 | AO67: 0 | AP67: 0 | AQ67: 1 | AR67: 2 | AS67: 0 | AT67: 0 | AU67: 0
AI68: 21 | AJ68: Rv 94 Kvalsund - Hammerfest | AK68: 3 | AL68: 13 | AM68: 4 | AN68: 6 | AO68: 6 | AP68: 3 | AQ68: 6 | AR68: 4 | AS68: 1 | AT68: 3 | AU68: 16
AI69: 22 | AJ69: Fv 8038 Gjesværkrysset - Gjesvær | AK69: 16 | AL69: 52 | AM69: 11 | AN69: 31 | AO69: 22 | AP69: 29 | AQ69: 7 | AR69: 14 | AS69: 10 | AT69: 18 | AU69: 42
AI70: 23 | AJ70: Fv 889 Smørfjord - Havøysund | AK70: - | AL70: 54 | AM70: 6 | AN70: 38 | AO70: 39 | AP70: 26 | AQ70: 44 | AR70: 40 | AS70: 33 | AT70: 41 | AU70: 58
AI71: 24 | AJ71: Fv 891 Båtsfjordfjellet | AK71: - | AL71: 75 | AM71: 44 | AN71: 75 | AO71: 61 | AP71: 69 | AQ71: 30 | AR71: 50 | AS71: 41 | AT71: 31 | AU71: 63
AI72: 25 | AJ72: E75 Domen (Kiberg-Vardø) | AK72: 1 | AL72: 13 | AM72: 0 | AN72: 6 | AO72: 6 | AP72: 0 | AQ72: 0 | AR72: 4 | AS72: 8 | AT72: 2 | AU72: 29
AI73: 26 | AJ73: Fv 888 Nordkynvegen (Ifjord - Mehamn) | AK73: - | AL73: 137 | AM73: 48 | AN73: 65 | AO73: 62 | AP73: 43 | AQ73: 66 | AR73: 117 | AS73: 71 | AT73: 74 | AU73: 137
AI74: 27 | AJ74: =VLOOKUP($AI74,Hovedtabell,AJ$45,FALSE) -> Fv 98 Ifjordfjellet | AK74: - | AL74: 110 | AM74: 54 | AN74: 57 | AO74: 49 | AP74: 25 | AQ74: 37 | AR74: 56 | AS74: 39 | AT74: 39 | AU74: 70
AI75: 28 | AJ75: Fv 890 Kongsfjordfjellet | AK75: - | AL75: 75 | AM75: 44 | AN75: 73 | AO75: 57 | AP75: 53 | AQ75: 18 | AR75: 29 | AS75: 27 | AT75: 23 | AU75: 61
AI76: 29 | AJ76: Fv 98 Børselvfjellet (Børselv - Kunes) | AK76: - | AL76: 1 | AM76: 0 | AN76: 3 | AO76: 0 | AP76: 1 | AQ76: 0 | AR76: 11 | AS76: 0 | AT76: 0 | AU76: 12
AI77: 30 | AJ77: Fv 813 Beiarfjellet (Misvær - Storjord) | AK77: - | AL77: 17 | AM77: 8 | AN77: 2 | AO77: 13 | AP77: 16 | AQ77: 6 | AR77: 19 | AS77: 6 | AT77: 10 | AU77: 35

Sheet Trend Midlertidig Stengt
C1: Trend MS
B4: Midlertidig stengt | E4: Finn nummeret til strekningen du ønsker i tabellen til høyre og skriv det i det gule feltet. | R4: Nr | S4: Fjellovergang/strekning
C5: 2 | D5: 3 | E5: 5 | F5: 7 | G5: 9 | H5: 11 | I5: 13 | J5: 15 | K5: 17 | L5: 19 | M5: 21 | N5: 23 | R5: 1 | S5: =VLOOKUP(R5,Hovedtabell,2,FALSE) -> E6 Burfjord - Alta
B6: ↓ | D6: 2009 / 2010 | E6: 2010 / 2011 | F6: 2011 / 2012 | G6: 2012 / 2013 | H6: 2013 / 2014 | I6: 2014 / 2015 | J6: 2015 / 2016 | K6: 2016 / 2017 | L6: 2017 / 2018 | M6: 2018 / 2019 | N6: 2019/2020 | R6: 2 | S6: E6 Hatter
D7: MS | E7: MS | F7: MS | G7: MS | H7: MS | I7: MS | J7: MS | K7: MS | L7: MS | M7: MS | N7: MS | R7: 3 | S7: E6 Kråkmofjellet
B8: 23 | C8: =VLOOKUP(B8,Hovedtabell,C5,FALSE) -> Fv 889 Smørfjord - Havøysund | D8: =VLOOKUP($B$8,Hovedtabell,D5,FALSE) -> - | E8: 34 | F8: 12 | G8: 37 | H8: 31 | I8: 34 | J8: 36 | K8: 53 | L8: 37 | M8: =VLOOKUP($B$8,Hovedtabell,M5,FALSE) -> 41 | N8: =VLOOKUP($B$8,Hovedtabell,N5,FALSE) -> 68 | R8: 4 | S8: E6 Kvænangsfjellet
C9: Snitt | D9: =AVERAGE($D$8:$N$8) -> 38.3 | E9: =AVERAGE($D$8:$N$8) -> 38.3 | F9: 38.3 | G9: 38.3 | H9: 38.3 | I9: 38.3 | J9: 38.3 | K9: 38.3 | L9: 38.3 | M9: 38.3 | N9: 38.3 | R9: 5 | S9: E6 Saltfjellet
R10: 6 | S10: E6 Sennalandet
R11: 7 | S11: E6 Ulvsvågskaret
R12: 8 | S12: E10 Bjørnfjell
R13: 9 | S13: E12 Umbukta
R14: 10 | S14: E69 Hønsa - Repvåg
R15: 11 | S15: E69 Nordkapptunnelen - Honningsvåg
R16: 12 | S16: E69 Olderfjord - Honningsvåg
R17: 13 | S17: E69 Olderfjord - Hønsa
R18: 14 | S18: E69 Repvåg - Nordkapptunnelen
R19: 15 | S19: E69 Skarsvåg - Nordkapp
R20: 16 | S20: E69 Skipsfjordhøgda - Skarsvåg
R21: 17 | S21: Rv 73 Krutfjellet
R22: 18 | S22: Rv 77 Graddis
R23: 19 | S23: Rv 92 Kautokeino - Karasjok
R24: 20 | S24: E45 Kautokeino - Alta
R25: 21 | S25: Rv 94 Kvalsund - Hammerfest
R26: 22 | S26: Fv 8038 Gjesværkrysset - Gjesvær
R27: 23 | S27: Fv 889 Smørfjord - Havøysund
R28: 24 | S28: Fv 891 Båtsfjordfjellet
R29: 25 | S29: E75 Domen (Kiberg-Vardø)
L30: Gjennomsnitt (blå linje): | M30: =AVERAGE(D8:N8) -> 38.3 | R30: 26 | S30: Fv 888 Nordkynvegen (Ifjord - Mehamn)
R31: 27 | S31: Fv 98 Ifjordfjellet
R32: 28 | S32: Fv 890 Kongsfjordfjellet
R33: 29 | S33: =VLOOKUP(R33,Hovedtabell,2,FALSE) -> Fv 98 Børselvfjellet (Børselv - Kunes)
R34: 30 | S34: =VLOOKUP(R34,Hovedtabell,2,FALSE) -> Fv 813 Beiarfjellet (Misvær - Storjord)

Sheet Trend Kolonnekjøring
C1: Trend KK
B4: Kolonnekjøring | E4: Finn nummeret til strekningen du ønsker i tabellen til høyre og skriv det i det gule feltet til venstre. | R4: Nr | S4: Fjellovergang/strekning
C5: 2 | D5: 4 | E5: 6 | F5: 8 | G5: 10 | H5: 12 | I5: 14 | J5: 16 | K5: 18 | L5: 20 | M5: 22 | N5: 24 | R5: 1 | S5: =VLOOKUP(R5,Hovedtabell,2,FALSE) -> E6 Burfjord - Alta
B6: ↓ | D6: 2009 / 2010 | E6: 2010 / 2011 | F6: 2011 / 2012 | G6: 2012 / 2013 | H6: 2013 / 2014 | I6: 2014 / 2015 | J6: 2015 / 2016 | K6: 2016 / 2017 | L6: 2017 / 2018 | M6: 2018 / 2019 | N6: 2019/2020 | R6: 2 | S6: E6 Hatter
D7: KK | E7: KK | F7: KK | G7: KK | H7: KK | I7: KK | J7: KK | K7: KK | L7: KK | M7: KK | N7: KK | R7: 3 | S7: E6 Kråkmofjellet
B8: 5 | C8: =VLOOKUP($B$8,Hovedtabell,C5,FALSE) -> E6 Saltfjellet | D8: 6 | E8: 28 | F8: 30 | G8: 7 | H8: 38 | I8: 31 | J8: 17 | K8: 44 | L8: 11 | M8: 17 | N8: =VLOOKUP($B$8,Hovedtabell,N5,FALSE) -> 65 | R8: 4 | S8: E6 Kvænangsfjellet
C9: Snitt | D9: =AVERAGE($D$8:$N$8) -> 26.72727273 | E9: =AVERAGE($D$8:$N$8) -> 26.72727273 | F9: 26.72727273 | G9: 26.72727273 | H9: 26.72727273 | I9: 26.72727273 | J9: 26.72727273 | K9: 26.72727273 | L9: 26.72727273 | M9: 26.72727273 | N9: =AVERAGE($D$8:$N$8) -> 26.72727273 | R9: 5 | S9: E6 Saltfjellet
R10: 6 | S10: E6 Sennalandet
R11: 7 | S11: E6 Ulvsvågskaret
R12: 8 | S12: E10 Bjørnfjell
R13: 9 | S13: E12 Umbukta
R14: 10 | S14: E69 Hønsa - Repvåg
R15: 11 | S15: E69 Nordkapptunnelen - Honningsvåg
R16: 12 | S16: E69 Olderfjord - Honningsvåg
R17: 13 | S17: E69 Olderfjord - Hønsa
R18: 14 | S18: E69 Repvåg - Nordkapptunnelen
R19: 15 | S19: E69 Skarsvåg - Nordkapp
R20: 16 | S20: E69 Skipsfjordhøgda - Skarsvåg
R21: 17 | S21: Rv 73 Krutfjellet
R22: 18 | S22: Rv 77 Graddis
R23: 19 | S23: Rv 92 Kautokeino - Karasjok
R24: 20 | S24: E45 Kautokeino - Alta
R25: 21 | S25: Rv 94 Kvalsund - Hammerfest
R26: 22 | S26: Fv 8038 Gjesværkrysset - Gjesvær
R27: 23 | S27: Fv 889 Smørfjord - Havøysund
R28: 24 | S28: Fv 891 Båtsfjordfjellet
R29: 25 | S29: E75 Domen (Kiberg-Vardø)
L30: Gjennomsnitt (blå linje): | M30: =AVERAGE(D8:N8) -> 26.72727273 | R30: 26 | S30: Fv 888 Nordkynvegen (Ifjord - Mehamn)
R31: 27 | S31: Fv 98 Ifjordfjellet
R32: 28 | S32: Fv 890 Kongsfjordfjellet
R33: 29 | S33: =VLOOKUP(R33,Hovedtabell,2,FALSE) -> Fv 98 Børselvfjellet (Børselv - Kunes)
R34: 30 | S34: =VLOOKUP(R34,Hovedtabell,2,FALSE) -> Fv 813 Beiarfjellet (Misvær - Storjord)

Sheet Søyle MS
C1: Søyle MS - Sammenligning
B4: Midlertidig stengt - Sammenligning | E4: Finn numrene til strekningene du ønsker i tabellen til høyre og skriv dem i de gule feltene. | R4: Nr | S4: Fjellovergang/strekning
C5: 2 | D5: 3 | E5: 5 | F5: 7 | G5: 9 | H5: 11 | I5: 13 | J5: 15 | K5: 17 | L5: 19 | M5: 21 | N5: 23 | R5: 1 | S5: =VLOOKUP(R5,Hovedtabell,2,FALSE) -> E6 Burfjord - Alta
B6: ↓ | D6: 2009 / 2010 | E6: 2010 / 2011 | F6: 2011 / 2012 | G6: 2012 / 2013 | H6: 2013 / 2014 | I6: 2014 / 2015 | J6: 2015 / 2016 | K6: 2016 / 2017 | L6: 2017 / 2018 | M6: 2018 / 2019 | N6: 2019 / 2020 | R6: 2 | S6: E6 Hatter
D7: MS | E7: MS | F7: MS | G7: MS | H7: MS | I7: MS | J7: MS | K7: MS | L7: MS | M7: MS | N7: MS | R7: 3 | S7: E6 Kråkmofjellet
B8: 11 | C8: =VLOOKUP(B8,Hovedtabell,C5,FALSE) -> E69 Nordkapptunnelen - Honningsvåg | D8: =VLOOKUP($B$8,Hovedtabell,D5,FALSE) -> 7 | E8: 15 | F8: 7 | G8: 29 | H8: 19 | I8: 23 | J8: 19 | K8: 12 | L8: 31 | M8: =VLOOKUP($B$8,Hovedtabell,M5,FALSE) -> 17 | N8: =VLOOKUP($B$8,Hovedtabell,N5,FALSE) -> 27 | R8: 4 | S8: E6 Kvænangsfjellet
B9: 12 | C9: =VLOOKUP(B9,Hovedtabell,C5,FALSE) -> E69 Olderfjord - Honningsvåg | D9: =VLOOKUP($B$9,Hovedtabell,D5,FALSE) -> 44 | E9: 73 | F9: 22 | G9: 91 | H9: 63 | I9: 62 | J9: 81 | K9: 72 | L9: 107 | M9: 62 | N9: 95 | R9: 5 | S9: E6 Saltfjellet
R10: 6 | S10: E6 Sennalandet
R11: 7 | S11: E6 Ulvsvågskaret
R12: 8 | S12: E10 Bjørnfjell
R13: 9 | S13: E12 Umbukta
R14: 10 | S14: E69 Hønsa - Repvåg
R15: 11 | S15: E69 Nordkapptunnelen - Honningsvåg
R16: 12 | S16: E69 Olderfjord - Honningsvåg
R17: 13 | S17: E69 Olderfjord - Hønsa
R18: 14 | S18: E69 Repvåg - Nordkapptunnelen
R19: 15 | S19: E69 Skarsvåg - Nordkapp
R20: 16 | S20: E69 Skipsfjordhøgda - Skarsvåg
R21: 17 | S21: Rv 73 Krutfjellet
R22: 18 | S22: Rv 77 Graddis
R23: 19 | S23: Rv 92 Kautokeino - Karasjok
R24: 20 | S24: E45 Kautokeino - Alta
R25: 21 | S25: Rv 94 Kvalsund - Hammerfest
R26: 22 | S26: Fv 8038 Gjesværkrysset - Gjesvær
R27: 23 | S27: Fv 889 Smørfjord - Havøysund
R28: 24 | S28: Fv 891 Båtsfjordfjellet
R29: 25 | S29: E75 Domen (Kiberg-Vardø)
R30: 26 | S30: Fv 888 Nordkynvegen (Ifjord - Mehamn)
R31: 27 | S31: Fv 98 Ifjordfjellet
R32: 28 | S32: Fv 890 Kongsfjordfjellet
R33: 29 | S33: Fv 98 Børselvfjellet (Børselv - Kunes)
R34: 30 | S34: =VLOOKUP(R34,Hovedtabell,2,FALSE) -> Fv 813 Beiarfjellet (Misvær - Storjord)

Sheet Søyle KK
C1: Søyle KK - Sammenligning
B4: Kolonnekjøring - Sammenligning | E4: Finn numrene til strekningene du ønsker i tabellen til høyre og skriv dem i de gule feltene. | R4: Nr | S4: Fjellovergang/strekning
C5: 2 | D5: 4 | E5: 6 | F5: 8 | G5: 10 | H5: 12 | I5: 14 | J5: 16 | K5: 18 | L5: 20 | M5: 22 | N5: 24 | R5: 1 | S5: =VLOOKUP(R5,Hovedtabell,2,FALSE) -> E6 Burfjord - Alta
B6: ↓ | D6: 2009 / 2010 | E6: 2010 / 2011 | F6: 2011 / 2012 | G6: 2012 / 2013 | H6: 2013 / 2014 | I6: 2014 / 2015 | J6: 2015 / 2016 | K6: 2016 / 2017 | L6: 2017 / 2018 | M6: 2018 / 2019 | N6: 2019 / 2020 | R6: 2 | S6: E6 Hatter
D7: KK | E7: KK | F7: KK | G7: KK | H7: KK | I7: KK | J7: KK | K7: KK | L7: KK | M7: KK | N7: KK | R7: 3 | S7: E6 Kråkmofjellet
B8: 5 | C8: =VLOOKUP(B8,Hovedtabell,C5,FALSE) -> E6 Saltfjellet | D8: =VLOOKUP($B$8,Hovedtabell,D5,FALSE) -> 6 | E8: 28 | F8: 30 | G8: 7 | H8: 38 | I8: 31 | J8: 17 | K8: 44 | L8: 11 | M8: =VLOOKUP($B$8,Hovedtabell,M5,FALSE) -> 17 | N8: =VLOOKUP($B$8,Hovedtabell,N5,FALSE) -> 65 | R8: 4 | S8: E6 Kvænangsfjellet
B9: 30 | C9: =VLOOKUP(B9,Hovedtabell,C5,FALSE) -> Fv 813 Beiarfjellet (Misvær - Storjord) | D9: =VLOOKUP($B$9,Hovedtabell,D5,FALSE) -> - | E9: 17 | F9: 8 | G9: 2 | H9: 13 | I9: 16 | J9: 6 | K9: 19 | L9: 6 | M9: 10 | N9: 35 | R9: 5 | S9: E6 Saltfjellet
R10: 6 | S10: E6 Sennalandet
R11: 7 | S11: E6 Ulvsvågskaret
R12: 8 | S12: E10 Bjørnfjell
R13: 9 | S13: E12 Umbukta
R14: 10 | S14: E69 Hønsa - Repvåg
R15: 11 | S15: E69 Nordkapptunnelen - Honningsvåg
R16: 12 | S16: E69 Olderfjord - Honningsvåg
R17: 13 | S17: E69 Olderfjord - Hønsa
R18: 14 | S18: E69 Repvåg - Nordkapptunnelen
R19: 15 | S19: E69 Skarsvåg - Nordkapp
R20: 16 | S20: E69 Skipsfjordhøgda - Skarsvåg
R21: 17 | S21: Rv 73 Krutfjellet
R22: 18 | S22: Rv 77 Graddis
R23: 19 | S23: Rv 92 Kautokeino - Karasjok
R24: 20 | S24: E45 Kautokeino - Alta
R25: 21 | S25: Rv 94 Kvalsund - Hammerfest
R26: 22 | S26: Fv 8038 Gjesværkrysset - Gjesvær
R27: 23 | S27: Fv 889 Smørfjord - Havøysund
R28: 24 | S28: Fv 891 Båtsfjordfjellet
R29: 25 | S29: E75 Domen (Kiberg-Vardø)
R30: 26 | S30: Fv 888 Nordkynvegen (Ifjord - Mehamn)
R31: 27 | S31: Fv 98 Ifjordfjellet
R32: 28 | S32: Fv 890 Kongsfjordfjellet
R33: 29 | S33: Fv 98 Børselvfjellet (Børselv - Kunes)
R34: 30 | S34: =VLOOKUP(R34,Hovedtabell,2,FALSE) -> Fv 813 Beiarfjellet (Misvær - Storjord)

Sheet Søyle MS alle

Sheet Søyle KK alle
